fUSD/lending_fUSD_20251223
["ID","MTS","AMOUNT","RATE_DAILY","PERIOD"]
[399578275,1766517929803,-2669.66,0.00012374,2]
[399578276,1766517929837,-1618.96198112,0.00012786,2]
[399578277,1766517930547,-1050.69801888,0.00012786,2]
[399578278,1766517930582,-1200.0,0.00013132,2]
[399578279,1766517930618,-1821.820218,0.00013133,2]
[399578280,1766517930652,-250.0,0.00013158,2]
[399578281,1766517930686,-185.0,0.00013198,2]
[399578282,1766517933318,-2669.66,0.00013199,2]
[399578283,1766517933351,-1991.03,0.00013611,2]
[399578284,1766517936594,-678.63,0.00013611,2]
[399578285,1766517936625,-2669.66,0.00014024,2]
[399578286,1766517936659,-633.77,0.00014436,2]
[399578292,1766518062499,-278.3762011,0.0001261,2]
[399578293,1766518092425,-74.1730945,0.0001261,2]
[399578294,1766518092450,-250.0,0.00013478,2]
[399578295,1766518092475,-44.65007045,0.00013871,2]
[399578296,1766518094501,-205.34992955,0.00013871,2]
[399578297,1766518094523,-82.86525932,0.00014345,2]
[399578298,1766518099718,-99.10457268,0.00014345,2]
[399578299,1766518099743,-71.77379008,0.00014436,2]
[399578300,1766518100166,390.34503828,7.888e-05,2]
[399578301,1766518103290,-169.60403793,0.00014436,2]
[399578302,1766518105428,-238.28198574,0.00014436,2]
[399578305,1766518123118,-200.0,0.00014436,2]
[399578308,1766518124745,-329.6788714,0.00014436,2]
[399578309,1766518127952,-262.43510493,0.00014436,2]
[399578310,1766518131661,-302.0,0.00014436,2]
[399578311,1766518152444,-223.25186762,0.00014436,2]
[399578312,1766518155635,-238.8643423,0.00014436,2]
[399578313,1766518155660,-57.72485634,0.00014445,2]
[399578314,1766518158306,-167.39838277,0.00014445,2]
[399578315,1766518161520,-312.76055097,0.00014445,2]
[399578316,1766518163140,-751.22869183,0.00014445,2]
[399578317,1766518164390,-302.0,0.00014445,2]
[399578318,1766518169741,-88.88751809,0.00014445,2]
[399578319,1766518169765,-352.5492956,0.000145,2]
[399578320,1766518169791,-185.79273304,0.00014541,2]
[399578321,1766518182415,-228.64592627,0.00014541,2]
[399578322,1766518184493,-386.30292743,0.00014541,2]
[399578323,1766518186619,-267.01941217,0.00014541,2]
[399578324,1766518188893,-132.23900109,0.00014541,2]
[399578325,1766518188917,-85.72103813,0.00014541,2]
[399578326,1766518190950,-214.27896187,0.00014541,2]
[399578327,1766518190973,-90.66435135,0.00014542,2]
[399578328,1766518193010,-277.53071861,0.00014542,2]
[399578329,1766518194566,-195.05668678,0.00014542,2]
[399578330,1766518213140,-300.0,0.00014541,2]
[399578331,1766518213168,-67.65457097,0.00014541,2]
[399578332,1766518214447,-192.25977646,0.00014541,2]
[399578333,1766518216555,-248.81349029,0.00013531,2]
[399578334,1766518217989,-245.8797037,0.00013531,2]
[399578335,1766518219927,-208.48179988,0.00013531,2]
[399578336,1766518222476,-186.28556368,0.00013531,2]
[399578337,1766518224530,-157.03239067,0.00013531,2]
[399578338,1766518226254,-195.0,0.00013531,2]
[399578339,1766518228752,-487.89217036,0.00013531,2]
[399578350,1766518232321,-1446.7295,0.00013531,2]
[399578351,1766518232485,-1260.11084742,0.00013531,2]
[399578352,1766518232496,-940.08565257,0.00014541,2]
[399578353,1766518232506,-270.0,0.00014541,2]
[399578354,1766518232517,-6315.11490467,0.00014542,2]
[399578355,1766518232543,-5128.46333859,0.00014542,2]
[399578356,1766518232553,-1000.0,0.00014806,2]
[399578357,1766518232562,-2669.66,0.00014849,2]
[399578358,1766518232572,-1944.63,0.00014931,2]
[399578359,1766518232583,-4436.225466,0.00015099,2]
[399578360,1766518232593,-2669.66,0.00015261,2]
[399578361,1766518232603,-6173.76,0.0001561,2]
[399578362,1766518232612,-24709.335,0.00015665,2]
[399578372,1766518232961,-8125.26234026,0.00015665,2]
[399578373,1766518232999,-417.07009857,0.00015665,2]
[399578374,1766518233010,-2669.66,0.00015674,2]
[399578375,1766518233020,-151.0,0.00015762,2]
[399578376,1766518233030,-500.0,0.00015764,2]
[399578377,1766518233040,-418.51717221,0.00015764,2]
[399578378,1766518233050,-500.0,0.00015764,2]
[399578379,1766518233059,-500.0,0.00015764,2]
[399578380,1766518233069,-424.17811138,0.00015764,2]
[399578381,1766518233078,-502.13274033,0.00015764,2]
[399578382,1766518233088,-273.38866728,0.00015764,2]
[399578383,1766518233098,-32038.12094544,0.00015765,2]
[399578385,1766518238441,-251.00000008,0.00015765,2]
[399578386,1766518238548,-594.01134137,0.00015765,2]
[399578410,1766518240348,-6258.7835539,0.00015765,2]
[399578411,1766518240403,-386.18629988,0.00015765,2]
[399578412,1766518240459,-857.81402166,0.00015765,2]
[399578413,1766518240566,-795.93,0.00015765,2]
[399578414,1766518241477,-1.7e-07,0.00015765,2]
[399578423,1766518243468,-244.00038138,0.00015764,2]
[399578424,1766518243478,-596.99961862,0.00015765,2]
[399578425,1766518243695,-50676.84392139,0.00015765,2]
[399578426,1766518243707,-1622.07230364,0.00015765,2]
[399578427,1766518243719,-3763.85684266,0.00015765,2]
[399578428,1766518243761,-6561.4500775,0.00015765,2]
[399578429,1766518243772,-355.434006,0.00015765,2]
[399578435,1766518246490,-581272.13949025,0.00015765,2]
[399578436,1766518246506,-313969.35757744,0.00015765,2]
[399578437,1766518246519,-2584.6822,0.00015765,2]
[399578438,1766518246531,-500.0,0.00015783,2]
[399578439,1766518246544,-160.20652096,0.00015783,2]
[399578440,1766518246563,-500.0,0.00015783,2]
[399578441,1766518246577,-500.0,0.00015808,2]
[399578442,1766518246591,-500.0,0.0001581,2]
[399578443,1766518246604,-549.74315086,0.00015849,2]
[399578444,1766518246619,-48802.31831048,0.00015865,2]
[399578445,1766518246632,-57023.86369985,0.00015865,2]
[399578446,1766518246648,-744.66170041,0.00015865,2]
[399578447,1766518246664,-4712.0,0.00015865,2]
[399578448,1766518246680,-1688.54009619,0.00015865,2]
[399578449,1766518246710,-28862.16839005,0.00015865,2]
[399578450,1766518246723,-1863.66254373,0.00015865,2]
[399578451,1766518246736,-250.0,0.0001588,2]
[399578452,1766518246748,-250.0,0.0001588,2]
[399578453,1766518246761,-240.69967108,0.0001588,2]
[399578454,1766518246773,-151.0,0.00015901,2]
[399578455,1766518246785,-151.0,0.00015914,2]
[399578456,1766518246799,-790.0,0.00015922,2]
[399578457,1766518246812,-605.72274006,0.00015955,2]
[399578458,1766518246826,-33190.7788,0.00015965,2]
[399578459,1766518246839,-1000.0,0.00015965,2]
[399578460,1766518246852,-1680.0,0.00015995,2]
[399578461,1766518246864,-151.0,0.00016021,2]
[399578462,1766518246879,-500.0,0.00016064,2]
[399578463,1766518246891,-500.0,0.00016064,2]
[399578464,1766518246909,-253.84521103,0.00016064,2]
[399578465,1766518246921,-646.48024776,0.00016064,2]
[399578466,1766518246935,-1014.55133329,0.00016072,5]
[399578467,1766518246948,-160.2233906,0.00016073,2]
[399578468,1766518246960,-173.03903705,0.00016073,2]
[399578469,1766518246974,-182.19324559,0.00016164,2]
[399578470,1766518246986,-150.0,0.00016164,2]
[399578471,1766518246999,-150.0,0.00016164,2]
[399578472,1766518247012,-153.0569396,0.00016164,2]
[399578473,1766518247024,-150.0,0.00016164,2]
[399578474,1766518247037,-186.75819186,0.00016164,2]
[399578475,1766518247049,-211.91242435,0.00016164,2]
[399578476,1766518247063,-218.11870161,0.00016164,2]
[399578477,1766518247075,-150.0,0.00016164,2]
[399578478,1766518247087,-97.65010001,0.00016164,2]
[399578479,1766518247107,-52.34989999,0.00016164,2]
[399578480,1766518247121,-500.0,0.00016164,2]
[399578481,1766518247134,-150.0,0.00016164,2]
[399578482,1766518247147,-150.0,0.00016164,2]
[399578483,1766518247160,-52.29672749,0.00016164,2]
[399578484,1766518247175,-144.48902632,0.00016164,2]
[399578485,1766518247187,-218.79470444,0.00016164,2]
[399578486,1766518247201,-150.0,0.00016164,2]
[399578487,1766518247213,-150.0,0.00016164,2]
[399578488,1766518247225,-183.30569166,0.00016164,2]
[399578489,1766518247237,-125.9245156,0.00016191,2]
[399578490,1766518247252,-24.0754844,0.00016191,2]
[399578491,1766518247264,-150.0,0.00016191,2]
[399578492,1766518247276,-150.0,0.00016191,2]
[399578493,1766518247287,-150.0,0.00016191,2]
[399578494,1766518247298,-150.0,0.00016191,2]
[399578495,1766518247311,-573.80704094,0.00016191,2]
[399578496,1766518247323,-150.0,0.00016191,2]
[399578497,1766518247336,-150.0,0.00016191,2]
[399578498,1766518247348,-151.0,0.00016197,2]
[399578499,1766518247361,-4186.82270282,0.000162,5]
[399578500,1766518247373,-210.96312953,0.00016219,2]
[399578501,1766518247386,-193.07365104,0.00016219,2]
[399578502,1766518247397,-150.0,0.00016219,2]
[399578503,1766518247410,-150.0,0.00016219,2]
[399578504,1766518247422,-150.0,0.00016219,2]
[399578505,1766518247435,-150.0,0.00016219,2]
[399578506,1766518247448,-150.0,0.00016219,2]
[399578507,1766518247460,-150.0,0.00016246,2]
[399578508,1766518247473,-255.12332887,0.00016246,2]
[399578509,1766518247484,-150.0,0.00016246,2]
[399578510,1766518247497,-150.0,0.00016246,2]
[399578511,1766518247509,-150.0,0.00016246,2]
[399578512,1766518247520,-166.66,0.0001625,2]
[399578513,1766518247533,-150.0,0.00016274,2]
[399578514,1766518247545,-150.0,0.00016274,2]
[399578515,1766518247557,-159.25903357,0.00016274,2]
[399578516,1766518247568,-174.20909775,0.00016301,2]
[399578517,1766518247580,-239.69349788,0.00016301,2]
[399578518,1766518247592,-1000.0,0.00016331,2]
[399578519,1766518247604,-1000.0,0.00016331,2]
[399578520,1766518247615,-352.5492956,0.00016389,2]
[399578521,1766518247627,-500.0,0.00016438,2]
[399578522,1766518247639,-500.0,0.00016438,2]
[399578523,1766518247650,-500.0,0.00016438,2]
[399578524,1766518247660,-500.0,0.00016438,2]
[399578525,1766518247672,-500.0,0.00016438,2]
[399578526,1766518247683,-500.0,0.00016438,2]
[399578527,1766518247694,-500.0,0.00016438,2]
[399578529,1766518247707,-500.0,0.00016438,2]
[399578531,1766518247718,-500.0,0.00016438,2]
[399578533,1766518247729,-500.0,0.00016438,2]
[399578535,1766518247740,-500.0,0.00016438,2]
[399578537,1766518247751,-500.0,0.00016438,2]
[399578539,1766518247762,-500.0,0.00016438,2]
[399578540,1766518247773,-500.0,0.00016438,2]
[399578541,1766518247784,-500.0,0.00016438,2]
[399578542,1766518247796,-500.0,0.00016438,2]
[399578543,1766518247808,-500.0,0.00016438,2]
[399578544,1766518247819,-500.0,0.00016438,2]
[399578545,1766518247830,-210.92967826,0.00016438,2]
[399578546,1766518247842,-500.0,0.00016438,2]
[399578547,1766518247853,-500.0,0.00016438,2]
[399578548,1766518247866,-500.0,0.00016438,2]
[399578549,1766518247879,-500.0,0.00016438,2]
[399578550,1766518247890,-500.0,0.00016438,2]
[399578551,1766518247901,-500.0,0.00016438,2]
[399578552,1766518247912,-500.0,0.00016438,2]
[399578553,1766518247923,-500.0,0.00016438,2]
[399578554,1766518247934,-500.0,0.00016438,2]
[399578555,1766518247945,-500.0,0.00016438,2]
[399578556,1766518247956,-500.0,0.00016438,2]
[399578557,1766518247967,-500.0,0.00016438,2]
[399578558,1766518247979,-500.0,0.00016438,2]
[399578559,1766518247989,-500.0,0.00016438,2]
[399578560,1766518248000,-500.0,0.00016438,2]
[399578561,1766518248011,-500.0,0.00016438,2]
[399578562,1766518248023,-500.0,0.00016438,2]
[399578563,1766518248034,-463.94585364,0.00016438,2]
[399578564,1766518248048,-36.05414636,0.00016438,2]
[399578565,1766518248060,-265.92089653,0.00016438,2]
[399578566,1766518248075,-234.07910347,0.00016438,2]
[399578567,1766518248087,-500.0,0.00016438,2]
[399578568,1766518248098,-500.0,0.00016438,2]
[399578569,1766518248109,-500.0,0.00016438,2]
[399578570,1766518248120,-500.0,0.00016438,2]
[399578571,1766518248132,-500.0,0.00016438,2]
[399578572,1766518248142,-500.0,0.00016438,2]
[399578573,1766518248153,-500.0,0.00016438,2]
[399578574,1766518248165,-500.0,0.00016438,2]
[399578575,1766518248175,-500.0,0.00016438,2]
[399578576,1766518248186,-117.5039523,0.00016438,2]
[399578577,1766518257457,331.6165,0.00013531,2]
[399578578,1766518259778,-504.53668497,0.00013531,2]
[399578579,1766518288633,-172.36889812,0.00013531,2]
[399578580,1766518292980,-185.42845754,0.00013531,2]
[399578581,1766518294497,-305.57895026,0.00013531,2]
[399578582,1766518296627,-189.11722755,0.00013531,2]
[399578583,1766518298570,-239.51454569,0.00013531,2]
[399578585,1766518301678,-360.15388085,0.00013531,2]
[399578586,1766518303786,-241.46671748,0.00013531,2]
[399578587,1766518313636,-1654.27932444,0.00013531,2]
[399578588,1766518313658,-1654.27932444,0.00015086,2]
[399578589,1766518313676,-2529.78186246,0.00015086,2]
[399578590,1766518313687,-161.65948866,0.0001522,2]
[399578591,1766518328313,1900.187709,7.945e-05,2]
[399578592,1766518405875,5526.0,0.000118,5]
[399578593,1766518406099,5514.0,0.000116,3]
[399578594,1766518620857,5526.0,0.000115,5]
[399578595,1766518621092,5526.0,0.000113,3]
[399578596,1766518634278,-163.09225423,0.00011,2]
[399578597,1766518635350,-157.55058434,0.00011,2]
[399578598,1766518636810,-289.81740533,0.00011,2]
[399578599,1766518640385,-210.35290903,0.00011,2]
[399578600,1766518641889,-260.8054223,0.00011,2]
[399578601,1766518645292,-209.741393,0.00010945,2]
[399578602,1766518645316,-135.0452904,0.00011,2]
[399578603,1766518650660,-352.18656946,0.00011,2]
[399578604,1766518652522,5526.0,0.000115,5]
[399578605,1766518652746,3922.0,0.000113,3]
[399578606,1766518805142,237.35185466,0.000226,120]
[399578634,1766519431970,-159.51,0.00014922,2]
[399578635,1766519431981,-150.0,0.0001512,2]
[399578636,1766519431991,-239.99958892,0.0001512,2]
[399578637,1766519432001,-276.0,0.0001512,2]
[399578638,1766519432011,-250.0,0.00015142,2]
[399578639,1766519432022,-200.0,0.00015163,2]
[399578640,1766519432032,-347.75704666,0.0001522,2]
[399578641,1766519432042,-2806.176398,0.0001522,2]
[399578642,1766519432052,-5.00051134,0.0001522,2]
[399578643,1766519432062,-300.0,0.00015367,2]
[399578644,1766519432072,-1200.0,0.00015367,2]
[399578645,1766519432082,-300.0,0.00015367,2]
[399578646,1766519432091,-300.0,0.00015367,2]
[399578647,1766519432102,-200.0,0.00015368,2]
[399578648,1766519432112,-207.4,0.00015368,2]
[399578649,1766519432126,-215.0738,0.00015368,2]
[399578650,1766519432136,-223.0315306,0.00015368,2]
[399578651,1766519432146,-231.28369723,0.00015368,2]
[399578652,1766519432156,-239.84119403,0.00015368,2]
[399578653,1766519432167,-248.71531821,0.00015368,2]
[399578654,1766519432177,-257.91778498,0.00015368,2]
[399578655,1766519432187,-267.46074303,0.00015368,2]
[399578656,1766519432199,-200.0,0.00015376,2]
[399578657,1766519432209,-166.66,0.00015541,2]
[399578658,1766519432219,-999.0,0.0001572,3]
[399578659,1766519432229,-300.0,0.00015754,2]
[399578660,1766519432239,-574.12855637,0.00015755,2]
[399578661,1766519432249,-160.0,0.00015755,2]
[399578662,1766519432259,-500.0,0.00015755,2]
[399578663,1766519432269,-151.0,0.00015755,2]
[399578664,1766519432279,-273.41846177,0.00015755,2]
[399578665,1766519432291,-226.58153823,0.00015755,2]
[399578666,1766519432301,-151.0,0.00015755,2]
[399578667,1766519432311,-250.0,0.00015755,2]
[399578668,1766519432321,-500.0,0.00015755,2]
[399578669,1766519432332,-151.0,0.00015755,2]
[399578670,1766519432341,-250.0,0.00015755,2]
[399578671,1766519432351,-500.0,0.00015755,2]
[399578672,1766519432361,-151.0,0.00015755,2]
[399578673,1766519432371,-250.0,0.00015755,2]
[399578674,1766519432381,-500.0,0.00015755,2]
[399578675,1766519432391,-151.0,0.00015755,2]
[399578676,1766519432401,-250.0,0.00015755,2]
[399578677,1766519432411,-500.0,0.00015755,2]
[399578678,1766519432421,-250.0,0.00015755,2]
[399578679,1766519432431,-500.0,0.00015755,2]
[399578680,1766519432441,-151.0,0.00015755,2]
[399578681,1766519432451,-250.0,0.00015755,2]
[399578682,1766519432460,-500.0,0.00015755,2]
[399578683,1766519432470,-151.0,0.00015755,2]
[399578684,1766519432479,-151.0,0.00015755,2]
[399578685,1766519432489,-500.0,0.00015755,2]
[399578686,1766519432499,-151.0,0.00015755,2]
[399578687,1766519432509,-311.64066109,0.00015755,2]
[399578688,1766519432520,-250.0,0.00015755,2]
[399578689,1766519432529,-500.0,0.00015755,2]
[399578690,1766519432539,-151.0,0.00015755,2]
[399578691,1766519432549,-250.0,0.00015755,2]
[399578692,1766519432561,-500.0,0.00015755,2]
[399578693,1766519432571,-151.0,0.00015755,2]
[399578694,1766519432580,-151.0,0.00015755,2]
[399578695,1766519432590,-250.0,0.00015755,2]
[399578696,1766519432602,-151.0,0.00015755,2]
[399578697,1766519432612,-151.0,0.00015755,2]
[399578698,1766519432622,-161.27780068,0.00015755,2]
[399578699,1766519432638,-88.72219932,0.00015755,2]
[399578700,1766519432648,-239.75284178,0.00015755,2]
[399578701,1766519432660,-10.24715822,0.00015755,2]
[399578702,1766519432670,-151.0,0.00015755,2]
[399578703,1766519432680,-250.0,0.00015755,2]
[399578704,1766519432690,-151.0,0.00015755,2]
[399578705,1766519432699,-250.0,0.00015755,2]
[399578706,1766519432709,-0.50789473,0.00015755,2]
[399578707,1766519432722,-182.4965845,0.00015755,2]
[399578708,1766519432733,-250.0,0.00015755,2]
[399578709,1766519432742,-359.83785358,0.00015755,2]
[399578710,1766519432752,-255.05281208,0.00015755,2]
[399578717,1766519437701,-56.04718792,0.00015755,2]
[399578718,1766519437711,-151.0,0.00015755,2]
[399578719,1766519437721,-151.0,0.00015755,2]
[399578720,1766519437731,-151.0,0.00015755,2]
[399578721,1766519437741,-67.51021022,0.00015755,2]
[399578722,1766519437752,-83.48978978,0.00015755,2]
[399578723,1766519437762,-151.0,0.00015755,2]
[399578724,1766519437772,-151.0,0.00015755,2]
[399578725,1766519437781,-151.0,0.00015755,2]
[399578726,1766519437791,-153.21186412,0.00015755,2]
[399578727,1766519437801,-151.0,0.00015755,2]
[399578728,1766519437811,-322.6107,0.00015755,2]
[399578729,1766519437821,-250.0,0.00015755,2]
[399578730,1766519437832,-250.0,0.00015755,2]
[399578731,1766519437842,-250.0,0.00015755,2]
[399578732,1766519437851,-250.0,0.00015755,2]
[399578733,1766519437861,-250.0,0.00015755,2]
[399578735,1766519437870,-226.41712887,0.00015755,2]
[399578737,1766519437880,-250.0,0.00015755,2]
[399578738,1766519437890,-250.0,0.00015755,2]
[399578739,1766519437900,-277.35679052,0.00015755,2]
[399578740,1766519437910,-181.75,0.00015755,2]
[399578741,1766519437920,-500.0,0.00015764,2]
[399578742,1766519437929,-500.0,0.00015764,2]
[399578743,1766519437938,-500.0,0.00015764,2]
[399578744,1766519437948,-497.14777135,0.00015764,2]
[399578745,1766519437958,-1672.08,0.00015764,2]
[399578747,1766519437968,-1672.08,0.00015764,2]
[399578749,1766519437978,-1672.08,0.00015764,2]
[399578750,1766519437987,-1672.08,0.00015764,2]
[399578752,1766519437997,-242.06394647,0.00015764,2]
[399578753,1766519438006,-500.0,0.00015808,2]
[399578754,1766519438016,-166.66,0.00015861,2]
[399578755,1766519438026,-151.0,0.00015864,2]
[399578756,1766519438035,-1672.08,0.00015864,2]
[399578757,1766519438045,-254.08020516,0.00015892,2]
[399578758,1766519438055,-4122.50098462,0.000159,2]
[399578759,1766519438067,-1043.35,0.000159,2]
[399578760,1766519438079,-17197.7490472,0.000159,2]
[399578761,1766519438091,-188.17872434,0.000159,2]
[399578762,1766519438101,-451.12,0.00015943,2]
[399578763,1766519438112,-150.0,0.00015943,2]
[399578764,1766519438127,-151.0,0.00015956,2]
[399578765,1766519438137,-746.53241414,0.00015958,2]
[399578766,1766519438147,-746.53241414,0.00015958,2]
[399578767,1766519438156,-746.53241414,0.00015958,2]
[399578768,1766519438168,-746.53241414,0.00015958,2]
[399578769,1766519438178,-746.53241414,0.00015958,2]
[399578770,1766519438188,-746.53241414,0.00015958,2]
[399578771,1766519438198,-746.53241414,0.00015958,2]
[399578772,1766519438208,-746.53241414,0.00015958,2]
[399578773,1766519438218,-746.53241414,0.00015958,2]
[399578774,1766519438228,-746.53241414,0.00015958,2]
[399578775,1766519438238,-746.53241414,0.00015958,2]
[399578776,1766519438248,-746.53241414,0.00015958,2]
[399578777,1766519438259,-746.53241414,0.00015958,2]
[399578778,1766519438269,-746.53241414,0.00015958,2]
[399578779,1766519438279,-746.53241414,0.00015958,2]
[399578780,1766519438290,-746.53241414,0.00015958,2]
[399578781,1766519438299,-746.53241414,0.00015958,2]
[399578782,1766519438309,-746.53241414,0.00015958,2]
[399578783,1766519438319,-746.53241414,0.00015958,2]
[399578784,1766519438328,-746.53241414,0.00015958,2]
[399578785,1766519438338,-746.53241414,0.00015958,2]
[399578786,1766519438348,-746.53241414,0.00015958,2]
[399578787,1766519438357,-746.53241414,0.00015958,2]
[399578788,1766519438367,-746.53241414,0.00015958,2]
[399578789,1766519438376,-746.53241414,0.00015958,2]
[399578790,1766519438386,-746.53241414,0.00015958,2]
[399578791,1766519438395,-746.53241414,0.00015958,2]
[399578792,1766519438405,-746.53241414,0.00015958,2]
[399578793,1766519438416,-746.53241414,0.00015958,2]
[399578794,1766519438426,-746.53241414,0.00015958,2]
[399578795,1766519438436,-746.53241414,0.00015958,2]
[399578796,1766519438447,-746.53241414,0.00015958,2]
[399578797,1766519438457,-746.53241414,0.00015958,2]
[399578798,1766519438466,-746.53241414,0.00015958,2]
[399578799,1766519438476,-746.53241414,0.00015958,2]
[399578800,1766519438486,-746.53241414,0.00015958,2]
[399578801,1766519438495,-746.53241414,0.00015958,2]
[399578802,1766519438505,-746.53241414,0.00015958,2]
[399578803,1766519438514,-746.53241414,0.00015958,2]
[399578804,1766519438524,-746.53241414,0.00015958,2]
[399578805,1766519438534,-746.53241414,0.00015958,2]
[399578806,1766519438543,-746.53241414,0.00015958,2]
[399578807,1766519438553,-746.53241414,0.00015958,2]
[399578808,1766519438563,-746.53241414,0.00015958,2]
[399578809,1766519438573,-746.53241414,0.00015958,2]
[399578810,1766519438582,-746.53241414,0.00015958,2]
[399578811,1766519438592,-746.53241414,0.00015958,2]
[399578812,1766519438603,-746.53241414,0.00015958,2]
[399578813,1766519438612,-746.53241414,0.00015958,2]
[399578814,1766519438623,-746.53241414,0.00015958,2]
[399578815,1766519438640,-746.53241414,0.00015958,2]
[399578816,1766519438650,-746.53241414,0.00015958,2]
[399578817,1766519438661,-746.53241414,0.00015958,2]
[399578818,1766519438671,-746.53241414,0.00015958,2]
[399578819,1766519438681,-746.53241414,0.00015958,2]
[399578820,1766519438691,-746.53241414,0.00015958,2]
[399578821,1766519438701,-746.53241414,0.00015958,2]
[399578822,1766519438711,-746.53241414,0.00015958,2]
[399578823,1766519438721,-746.53241414,0.00015958,2]
[399578824,1766519438731,-1000000.0,0.00015959,2]
[399578825,1766519438741,-403.81516004,0.0001599,2]
[399578826,1766519438751,-164.01,0.00015996,2]
[399578827,1766519438761,-71385.6051857,0.00016,2]
[399578828,1766519438774,-422.61138319,0.00016,2]
[399578829,1766519438786,-2041.02769881,0.00016,2]
[399578830,1766519438798,-8775.91582988,0.00016,2]
[399578834,1766519439545,-3689.52,0.00016,2]
[399578835,1766519439557,-1298.85044763,0.00016,2]
[399578836,1766519439569,-17845.8268315,0.00016,2]
[399578837,1766519439580,-298.51436949,0.00016,2]
[399578838,1766519439599,-907.96447581,0.00016,2]
[399578839,1766519439610,-1518.12334425,0.00016,2]
[399578840,1766519439653,-60946.93440316,0.00016,2]
[399578841,1766519439665,-265.96,0.00016,2]
[399578842,1766519439689,-245.28676337,0.00016,2]
[399578843,1766519439703,-25051.29371914,0.00016,2]
[399578844,1766519439715,-74536.60524807,0.00016,2]
[399578845,1766519439726,-150.0,0.00016027,2]
[399578846,1766519439736,-150.0,0.00016027,2]
[399578847,1766519439746,-150.0,0.00016027,2]
[399578848,1766519439756,-150.0,0.00016027,2]
[399578849,1766519439766,-150.0,0.00016027,2]
[399578850,1766519439776,-3012.0,0.00016027,2]
[399578851,1766519439786,-150.0,0.00016027,2]
[399578852,1766519439797,-155.43606442,0.00016027,2]
[399578853,1766519439806,-500.0,0.00016027,2]
[399578854,1766519439816,-150.0,0.00016027,2]
[399578855,1766519439826,-150.0,0.00016027,2]
[399578856,1766519439836,-150.0,0.00016027,2]
[399578857,1766519439847,-150.0,0.00016027,2]
[399578858,1766519439857,-150.0,0.00016027,2]
[399578859,1766519439866,-150.0,0.00016027,2]
[399578860,1766519439876,-150.0,0.00016027,2]
[399578861,1766519439886,-150.0,0.00016027,2]
[399578862,1766519439896,-211.43556329,0.00016027,2]
[399578863,1766519439906,-150.0,0.00016027,2]
[399578864,1766519439916,-150.0,0.00016027,2]
[399578865,1766519439925,-150.0,0.00016027,2]
[399578866,1766519439934,-150.37408833,0.00016027,2]
[399578867,1766519439944,-150.0,0.00016027,2]
[399578868,1766519439954,-150.0,0.00016027,2]
[399578869,1766519439963,-150.0,0.00016027,2]
[399578870,1766519439973,-150.0,0.00016027,2]
[399578872,1766519439983,-201.41254181,0.00016027,2]
[399578873,1766519439992,-500.0,0.00016027,2]
[399578874,1766519440002,-150.0,0.00016027,2]
[399578875,1766519440012,-272.46378967,0.00016027,2]
[399578876,1766519440022,-150.0,0.00016027,2]
[399578877,1766519440031,-150.0,0.00016027,2]
[399578878,1766519440040,-150.0,0.00016027,2]
[399578879,1766519440050,-150.0,0.00016027,2]
[399578880,1766519440060,-219.78111574,0.00016027,2]
[399578881,1766519440069,-150.0,0.00016027,2]
[399578882,1766519440079,-150.0,0.00016027,2]
[399578883,1766519440089,-181.76,0.00016028,2]
[399578884,1766519440099,-182.18436554,0.00016054,2]
[399578885,1766519440108,-150.0,0.00016054,2]
[399578886,1766519440121,-150.0,0.00016054,2]
[399578887,1766519440136,-150.0,0.00016054,2]
[399578888,1766519440146,-150.0,0.00016054,2]